bitfinex-derivatives/quotes_SOLF0:USTF0_20260210
["timestamp","ask_amount","ask_price","bid_price","bid_amount"]
[1770726831324,10.6811,84.339,84.304,29.12355559]
[1770726832933,14.37319002,84.33,84.304,29.12355559]
[1770726833128,14.37319002,84.33,84.285,29.1344913]
[1770726836132,10.6822,84.33,84.285,29.1344913]
[1770726837336,14.37319002,84.33,84.285,29.1344913]
[1770726839034,10.6822,84.33,84.285,29.1344913]
[1770726841529,10.6829,84.325,84.285,29.1344913]
[1770726841731,3.68515993,84.32,84.285,29.1344913]
[1770726841930,3.68515993,84.32,84.271,10.6895]
[1770726841931,3.68515993,84.29,84.251,29.11516591]
[1770726842130,10.6873,84.289,84.251,29.11516591]
[1770726844629,10.6873,84.289,84.221,104.62]
[1770726844630,3.68515993,84.27,84.223,29.19334352]
[1770726845844,10.6905,84.264,84.223,29.19334352]
[1770726846041,3.68515993,84.26,84.223,29.19334352]
[1770726846247,3.68515993,84.24,84.211,29.53724613]
[1770726847646,138.48,84.275,84.211,29.53724613]
[1770726847647,3.68515993,84.25,84.211,29.53724613]
[1770726847849,3.68515993,84.24,84.2,29.44312862]
[1770726848948,10.6938,84.239,84.2,29.44312862]
[1770726849147,3.68515993,84.23,84.2,29.44312862]
[1770726849350,3.68515993,84.23,84.188,29.06573929]
[1770726849849,3.68515993,84.23,84.154,14.76312596]
[1770726849850,3.68515993,84.21,84.175,29.06506748]
[1770726850344,3.68515993,84.2,84.175,29.06506748]
[1770726850654,10.6988,84.199,84.151,29.06506748]
[1770726851261,3.68515993,84.19,84.151,29.06506748]
[1770726852453,3.68515993,84.18,84.138,29.05624485]
[1770726852764,3.68515993,84.17,84.138,29.05624485]
[1770726853860,14.38755993,84.17,84.138,29.05624485]
[1770726854158,3.68515993,84.19,84.141,29.0521377]
[1770726854357,10.7014,84.178,84.141,29.0521377]
[1770726855058,10.7027,84.168,84.11,3.68515993]
[1770726855460,10.7027,84.168,84.12,3.68515993]
[1770726857053,10.7027,84.168,84.121,19.41603676]
[1770726860266,10.7038,84.16,84.121,19.41603676]
[1770726860466,14.38895993,84.16,84.121,19.41603676]
[1770726862163,21.394,84.213,84.094,19.43789885]
[1770726862164,3.68515993,84.15,84.094,19.43789885]
[1770726862862,3.68515993,84.15,84.097,19.47414396]
[1770726862863,10.7052,84.149,84.097,19.47414396]
[1770726863565,3.68515993,84.15,84.097,19.47414396]
[1770726863771,3.68515993,84.15,84.098,19.47254275]
[1770726864668,10.704,84.158,84.101,19.92604936]
[1770726865171,10.703,84.166,84.111,19.92604936]
[1770726865462,3.68515993,84.17,84.113,19.92604936]
[1770726866165,10.7026,84.169,84.115,19.92473774]
[1770726866371,3.68515993,84.16,84.115,19.92473774]
[1770726866960,3.68515993,84.15,84.115,19.92473774]
[1770726867767,3.68515993,84.16,84.115,19.92473774]
[1770726868169,3.68515993,84.15,84.115,19.92473774]
[1770726869776,94.82,84.186,84.097,20.01663051]
[1770726870073,3.68515993,84.13,84.097,20.01663051]
[1770726871574,3.68515993,84.12,84.085,19.99876626]
[1770726872566,3.68515993,84.11,84.085,19.99876626]
[1770726873271,10.709,84.119,84.085,19.99876626]
[1770726874575,10.7102,84.11,84.072,20.37902947]
[1770726874872,14.39535993,84.11,84.072,20.37902947]
[1770726877980,3.68515993,84.11,84.058,20.30043558]
[1770726878182,3.68515993,84.08,84.046,20.30043558]
[1770726878486,3.68515993,84.09,84.046,20.30043558]
[1770726879280,10.7131,84.087,84.046,20.30043558]
[1770726879774,10.714,84.08,84.046,20.30043558]
[1770726879978,3.68515993,84.07,84.017,320.77787238]
[1770726881285,3.68515993,84.07,84.01,3.68515993]
[1770726881785,10.7162,84.062,84.01,3.68515993]
[1770726881986,10.7162,84.062,84.011,17.0073151]
[1770726883783,10.7162,84.062,84.0,122.84]
[1770726883784,15.06771515,84.107,84.051,17.0073151]
[1770726883976,15.06771515,84.107,84.0,124.910301]
[1770726883977,3.68515993,84.13,84.071,17.0073151]
[1770726884184,10.7106,84.106,84.071,17.0073151]
[1770726884877,3.68515993,84.11,84.071,1.51e-05]
[1770726886083,10.7102,84.11,84.071,1.51e-05]
[1770726887192,10.7111,84.103,84.071,1.51e-05]
[1770726887590,3.68515993,84.11,84.071,1.51e-05]
[1770726888590,17.96076016,84.118,84.071,1.51e-05]
[1770726889991,95.68,84.15,84.073,17.74220992]
[1770726889992,10.7078,84.128,84.073,17.74220992]
[1770726890381,10.7078,84.128,84.081,17.74220992]
[1770726890982,10.7078,84.128,84.022,21.4425]
[1770726890983,18.52711087,84.134,84.091,17.74220992]
[1770726893588,18.52711087,84.134,84.092,17.74220992]
[1770726893992,18.52711087,84.133,84.092,17.74220992]
[1770726894189,10.7071,84.134,84.08,3.7030475]
[1770726894190,18.52711087,84.129,84.081,17.74220992]
[1770726896396,29.23491087,84.128,84.081,17.74220992]
[1770726896695,18.52711087,84.127,84.081,17.74220992]
[1770726897196,29.23511087,84.126,84.081,17.74220992]
[1770726897396,18.52711087,84.126,84.081,17.74220992]
[1770726897593,18.52711087,84.126,84.042,17.74220992]
[1770726897793,3.7030475,84.11,84.051,17.74220992]
[1770726897984,22.23015837,84.12,84.061,17.74220992]
[1770726898388,18.52711087,84.12,84.07,3.7030475]
[1770726898595,3.7030475,84.13,84.071,17.74220992]
[1770726899098,22.23015837,84.13,84.071,17.74220992]
[1770726899595,18.52711087,84.109,84.059,17.74220992]
[1770726899793,3.7030475,84.1,84.059,17.74220992]
[1770726899993,18.52711087,84.109,84.059,17.74220992]
[1770726900193,3.7030475,84.1,84.059,17.74220992]
[1770726900396,22.23015837,84.1,84.059,17.74220992]
[1770726900699,18.52711087,84.079,84.027,17.74220992]
[1770726901694,22.23527538,84.06,84.014,17.74220992]
[1770726902096,18.52711087,84.076,84.021,17.74220992]
[1770726902294,3.70816451,84.07,84.011,17.74220992]
[1770726902496,3.70816451,84.08,84.021,17.74220992]
[1770726902797,11.00791796,84.124,84.021,17.74220992]
[1770726902798,18.52711087,84.095,84.041,17.74220992]
[1770726903299,22.23527538,84.09,84.041,17.74220992]
[1770726906299,18.52711087,84.087,84.03,3.70816451]
[1770726906500,18.52711087,84.079,84.028,17.74220992]
[1770726906706,18.52711087,84.079,84.031,17.74220992]
[1770726908401,10.7142,84.078,84.031,17.74220992]
[1770726911308,18.52711087,84.079,84.031,17.74220992]
[1770726914106,18.52711087,84.079,84.033,17.74220992]
[1770726914713,18.52711087,84.079,84.034,28.46190992]
[1770726914917,18.52711087,84.079,84.035,17.74220992]
[1770726915815,18.52711087,84.079,84.038,10.7192]
[1770726916015,18.52711087,84.079,84.035,17.74220992]
[1770726916818,18.52711087,84.079,84.036,10.7194]
[1770726918909,18.52711087,84.069,84.02,17.74220992]
[1770726919113,18.52711087,84.059,84.02,17.74220992]
[1770726920118,18.52711087,84.059,84.015,18.35717588]
[1770726920325,22.02529408,84.05,83.991,18.35717588]
[1770726920714,22.02529408,84.05,84.016,10.7219]
[1770726922624,22.02529408,84.05,84.005,18.35717588]
[1770726922826,21.69970548,84.06,84.029,10.7203]
[1770726923718,17.99154097,84.06,84.029,10.7204]
[1770726923914,17.99154097,84.06,84.006,18.47795852]
[1770726924119,21.69970548,84.06,84.006,18.47795852]
[1770726924321,3.70816451,84.07,84.023,18.47795852]
[1770726924530,3.70816451,84.07,83.999,21.4484]
[1770726924531,17.99154097,84.072,84.031,18.47795852]
[1770726925631,21.69970548,84.1,84.04,22.18612303]
[1770726926127,3.70816451,84.09,84.04,22.18612303]
[1770726926835,3.70816451,84.09,84.049,10.7178]
[1770726927438,21.69970548,84.09,84.04,22.18612303]
[1770726927827,21.69970548,84.09,84.04,18.47795852]
[1770726928132,21.69970548,84.09,84.04,22.18612303]
[1770726929335,21.69970548,84.09,84.043,18.47795852]
[1770726929936,21.69970548,84.08,84.032,10.72]
[1770726930129,21.69970548,84.08,84.033,18.47795852]
[1770726930530,17.99154097,84.08,84.033,18.47795852]
[1770726931140,17.99154097,84.08,84.034,18.47795852]
[1770726931731,17.99154097,84.094,84.034,18.47795852]
[1770726931936,17.99154097,84.088,84.038,18.47795852]
[1770726932743,10.7133,84.085,84.038,18.47795852]
[1770726933039,17.99154097,84.084,84.038,18.47795852]
[1770726933641,17.99154097,84.079,84.038,18.47795852]
[1770726934740,17.99154097,84.076,84.038,18.47795852]
[1770726937236,10.7147,84.074,84.038,18.47795852]
[1770726938044,10.7139,84.081,84.04,18.47795852]
[1770726939040,21.69970548,84.1,84.046,18.47795852]
[1770726939744,21.69970548,84.1,84.052,18.47795852]
[1770726940745,17.99154097,84.098,84.052,18.47795852]
[1770726943740,17.99154097,84.089,84.04,18.47795852]
[1770726944237,17.99154097,84.079,84.04,18.47795852]
[1770726945136,3.70816451,84.06,84.016,18.47795852]
[1770726945338,21.69970548,84.07,84.016,18.47795852]
[1770726945740,21.69970548,84.07,84.017,29.19985852]
[1770726946046,17.99154097,84.059,84.017,29.19985852]
[1770726946247,17.99154097,84.059,84.017,18.47795852]
[1770726950141,3.70816451,84.07,84.021,10.7214]
[1770726950446,3.70816451,84.07,84.022,18.24074529]
[1770726951143,17.75000712,84.069,84.022,18.24074529]
[1770726952147,14.42336451,84.07,84.02,3.70816451]
[1770726952148,10.7143,84.078,84.025,18.24074529]
[1770726952544,17.75000712,84.082,84.031,18.24074529]
[1770726952945,10.7139,84.081,84.036,10.7195]
[1770726953158,10.7139,84.081,84.037,18.24074529]
[1770726958055,10.7139,84.081,84.039,18.24074529]
[1770726960053,10.7139,84.081,84.041,18.24074529]
[1770726963057,17.75000712,84.08,84.041,18.24074529]
[1770726964260,10.7141,84.079,84.041,18.24074529]
[1770726965753,17.75000712,84.078,84.041,18.24074529]
[1770726966647,17.75000712,84.069,84.014,14.76312596]
[1770726966851,17.75000712,84.059,84.009,18.24074529]
[1770726967758,17.75000712,84.057,84.016,10.722]
[1770726968963,17.75000712,84.057,84.019,18.24074529]
[1770726970863,28.46550712,84.068,84.019,18.24074529]
[1770726971063,28.46550712,84.068,84.021,18.24074529]
[1770726971664,10.7158,84.066,84.022,18.24074529]
[1770726972759,10.7158,84.066,84.025,18.24074529]
[1770726972966,28.46580712,84.066,84.025,18.24074529]
[1770726973266,17.75000712,84.059,84.025,18.24074529]
[1770726973455,17.75000712,84.059,84.011,18.24074529]
[1770726973863,3.70709323,84.05,84.011,18.24074529]
[1770726974062,17.75000712,84.059,84.011,18.24074529]
[1770726974259,3.70709323,84.05,84.011,18.24074529]
[1770726974562,17.75000712,84.049,84.011,18.24074529]
[1770726975663,17.75000712,84.049,84.011,28.96344529]
[1770726975859,3.70709323,84.04,83.999,18.24074529]
[1770726976064,21.45710035,84.04,83.987,18.24074529]
[1770726976261,3.70709323,84.03,83.987,18.24074529]
[1770726976461,21.45710035,84.03,83.987,18.24074529]
[1770726976662,17.75000712,84.019,83.974,18.24074529]
[1770726977164,3.70709323,84.03,83.982,18.24074529]
[1770726977463,21.45710035,84.03,83.982,18.24074529]
[1770726977764,14.82718538,84.078,83.973,317.72584932]
[1770726977765,17.75000712,84.019,83.973,317.72584932]
[1770726977970,17.75000712,84.019,83.974,18.24074529]
[1770726981765,17.75000712,84.019,83.976,19.02676196]
[1770726982369,10.7188,84.042,83.991,19.02676196]
[1770726982567,18.64831258,84.041,83.991,19.02676196]
[1770726982766,18.64831258,84.041,83.993,19.02676196]
[1770726983566,10.7191,84.04,83.993,19.02676196]
[1770726985074,10.7193,84.038,83.993,19.02676196]
[1770726987179,18.64831258,84.037,83.993,19.02676196]
[1770726991384,10.7199,84.033,83.993,19.02676196]
[1770726992080,10.7199,84.033,83.99,3.70709323]
[1770726992081,18.64831258,84.049,84.002,19.02676196]
[1770726993887,18.64831258,84.047,84.002,19.02676196]
[1770726995389,29.36661258,84.046,84.002,19.02676196]
[1770726995588,29.36661258,84.046,84.004,19.02676196]
[1770726996380,18.64831258,84.046,84.007,19.02676196]
[1770726996577,18.64831258,84.057,84.011,19.02676196]
[1770726997183,18.64831258,84.057,84.02,10.7215]
[1770726997385,18.64831258,84.1,84.031,19.02676196]
[1770726997589,18.64831258,84.1,84.005,21.4469]
[1770726997590,18.64831258,84.089,84.041,19.02676196]
[1770726997989,18.64831258,84.079,84.028,19.02676196]
[1770726998198,18.64831258,84.069,84.019,19.02676196]
[1770726998489,3.70709323,84.06,84.019,19.02676196]
[1770726998694,10.7171,84.056,84.019,19.02676196]
[1770727000986,18.64831258,84.069,84.019,19.02676196]
[1770727001894,22.35540581,84.06,84.019,19.02676196]
[1770727002294,18.64831258,84.039,83.998,10.7243]
[1770727002595,18.64831258,84.039,83.999,19.02676196]
[1770727002994,18.64831258,84.039,83.999,29.75086196]
[1770727004287,18.64831258,84.039,83.99,3.70709323]
[1770727004288,10.7175,84.052,84.003,19.02676196]
[1770727005597,18.64831258,84.044,83.991,19.02676196]
[1770727006695,10.7191,84.039,83.998,10.7243]
[1770727006891,18.64831258,84.044,83.999,19.02676196]
[1770727007093,95.0,84.072,84.001,19.02676196]
[1770727007094,18.64831258,84.059,84.001,19.02676196]
[1770727007485,10.7183,84.046,84.003,19.02676196]
[1770727007691,18.64831258,84.059,84.003,19.02676196]
[1770727007897,3.70709323,84.05,84.003,19.02676196]
[1770727008098,22.35540581,84.05,84.003,19.02676196]
[1770727009200,22.35540581,84.05,84.003,29.75046196]
[1770727009403,22.35540581,84.05,84.004,19.02676196]
[1770727009695,18.64831258,84.05,84.004,19.02676196]
[1770727010698,18.64831258,84.05,84.012,10.7225]
[1770727010893,22.35540581,84.05,84.012,10.7225]
[1770727012097,18.64831258,84.05,84.012,10.7225]
[1770727013298,18.64831258,84.05,84.018,10.7217]
[1770727015902,22.35853533,84.05,84.018,10.7217]
[1770727016801,17.68928488,84.039,83.99,19.53760809]
[1770727018704,17.68928488,84.039,84.003,10.7237]
[1770727019704,17.68928488,84.039,83.996,10.7246]
[1770727020206,17.68928488,84.039,83.997,19.53760809]
[1770727020502,17.68928488,84.029,83.985,19.53760809]
[1770727022705,17.68928488,84.029,83.987,19.53760809]
[1770727026703,17.68928488,84.029,83.99,19.53760809]
[1770727027602,17.68928488,84.029,83.98,3.71190378]
[1770727027603,3.71190378,84.04,83.999,19.53760809]
[1770727027801,17.68928488,84.054,84.001,19.53760809]
[1770727028309,17.68928488,84.054,84.012,19.53760809]
[1770727029103,17.68928488,84.054,84.021,10.7213]
[1770727029407,3.71190378,84.06,84.022,19.53760809]
[1770727029906,17.68928488,84.066,84.022,19.53760809]
[1770727030107,17.68928488,84.066,84.024,10.7209]
[1770727031213,17.68928488,84.066,84.024,30.25850809]
[1770727031614,17.68928488,84.066,84.034,10.7197]
[1770727031811,17.68928488,84.079,84.025,19.53760809]
[1770727032011,17.68928488,84.079,84.031,19.53760809]
[1770727032717,17.68928488,84.079,84.032,19.53760809]
[1770727038829,17.68928488,84.069,84.02,23.24951187]
[1770727039121,17.68928488,84.069,84.02,19.53760809]
[1770727040330,10.7159,84.065,84.02,19.53760809]
[1770727040524,18.53626362,84.059,84.02,19.53760809]
[1770727040714,18.53626362,84.059,84.011,10.7226]
[1770727041025,18.53626362,84.059,84.012,18.46771132]
[1770727041725,18.51226712,84.058,84.015,10.7222]
[1770727042718,18.51226712,84.058,84.016,19.48733128]
[1770727042925,18.51226712,84.058,84.017,10.7219]
[1770727045414,18.51226712,84.058,84.023,10.7211]
[1770727048027,18.51226712,84.039,83.991,19.48733128]
[1770727048828,18.51226712,84.039,84.015,10.7222]
[1770727049027,22.2241709,84.05,84.005,19.48733128]
[1770727049732,22.2241709,84.05,84.015,10.7221]
[1770727055431,22.2241709,84.05,84.005,19.48733128]
[1770727056234,22.2241709,84.05,84.0,3.71190378]
[1770727056235,22.2241709,84.05,84.008,19.48733128]
[1770727058436,18.51226712,84.05,84.009,10.7229]
[1770727058736,18.51226712,84.05,84.01,19.48733128]
[1770727061232,18.12423542,84.035,83.993,19.48733128]
[1770727063138,18.12423542,84.035,83.995,19.48733128]
[1770727064243,10.7196,84.036,83.995,19.48733128]
[1770727064546,10.7196,84.036,83.997,19.48733128]
[1770727064747,18.18265127,84.046,83.987,311.8486922]
[1770727064748,10.7183,84.046,84.001,19.48733128]
[1770727065340,10.7183,84.046,84.007,10.7232]
[1770727065539,10.7183,84.046,84.008,19.48733128]
[1770727067743,18.51226712,84.055,84.008,19.48733128]
[1770727069142,18.51226712,84.055,84.0,3.71190378]
[1770727069143,18.51226712,84.055,84.01,19.48733128]
[1770727070247,18.51226712,84.055,84.018,18.50741343]
[1770727071138,22.34016401,84.07,84.022,18.50741343]
[1770727072343,18.62976714,84.068,84.022,18.50741343]
[1770727073752,18.59451626,84.064,84.022,18.50741343]
[1770727074745,18.59216524,84.059,84.022,18.50741343]
[1770727075850,18.59283613,84.058,84.022,18.50741343]
[1770727077952,28.96900262,84.056,84.022,18.50741343]
[1770727078856,18.46284823,84.055,84.022,18.50741343]
[1770727080153,10.7173,84.054,84.022,18.50741343]
[1770727081454,18.52239467,84.053,84.022,18.50741343]
[1770727081660,29.23985166,84.052,84.022,18.50741343]
[1770727082557,18.5229385,84.051,84.012,18.50741343]
[1770727082766,18.56225854,84.039,84.001,10.7239]
[1770727083472,18.56225854,84.039,84.002,18.50741343]
[1770727085471,10.719,84.04,84.006,18.50741343]
[1770727085973,29.08120993,84.05,84.006,18.50741343]
[1770727086868,29.08120993,84.05,84.008,18.50741343]
[1770727087771,29.08120993,84.05,84.01,18.50741343]
[1770727089267,18.36340993,84.05,84.01,18.50741343]
[1770727090166,18.36340993,84.05,84.013,18.50741343]
[1770727090670,3.71077713,84.06,84.013,18.50741343]
[1770727090864,18.42576725,84.064,84.016,18.50741343]
[1770727093272,18.42576725,84.064,84.019,18.50741343]
[1770727094373,18.42576725,84.064,84.022,18.50741343]
[1770727097972,18.15313875,84.062,84.022,18.50741343]
[1770727098174,18.15313875,84.049,84.011,18.50741343]
[1770727098370,18.15313875,84.049,84.0,18.50741343]
[1770727098572,18.15364513,84.039,83.995,14.7735714]
[1770727098769,18.15364513,84.039,83.993,18.50741343]
[1770727110486,18.15364513,84.039,83.995,17.95339645]
[1770727110791,16.90950544,84.037,83.995,17.95339645]
[1770727111087,16.90950544,84.029,83.987,311.8486922]
[1770727111292,16.90950544,84.019,83.975,17.95339645]
[1770727112389,16.90950544,84.019,83.976,17.95339645]
[1770727112894,10.7223,84.015,83.976,17.95339645]
[1770727113087,10.7223,84.015,83.975,142.58]
[1770727113088,16.84328858,84.03,83.981,17.95339645]
[1770727113392,16.84328858,84.03,83.991,17.95339645]
[1770727114291,10.7205,84.029,83.991,17.95339645]
[1770727114589,10.7205,84.029,83.992,17.95339645]
[1770727115183,16.83907762,84.043,84.001,17.95339645]
[1770727116690,10.7195,84.036,84.001,17.95339645]
[1770727123595,16.83907762,84.043,84.002,17.95339645]
[1770727123905,16.83907762,84.043,83.984,14.76476907]
[1770727123906,15.90502819,84.072,84.021,17.95339645]
[1770727124098,15.90502819,84.072,84.03,21.66417358]
[1770727124801,19.68581638,84.07,84.03,17.95339645]
[1770727124996,19.68581638,84.07,84.02,21.66417358]
[1770727125496,15.87869569,84.066,84.02,21.66417358]
[1770727126899,16.20403065,84.059,84.02,17.95339645]
[1770727130406,10.7168,84.057,84.02,17.95339645]
[1770727130608,26.58373265,84.057,84.02,17.95339645]
[1770727130908,16.17958553,84.056,84.02,17.95339645]
[1770727131106,16.17958553,84.054,84.02,17.95339645]
[1770727131405,16.17958553,84.054,84.008,17.56388214]
[1770727132705,26.43151531,84.053,84.008,17.56388214]
[1770727132905,15.71411531,84.052,84.011,17.56388214]
[1770727135903,15.71411531,84.052,84.01,3.70944026]
[1770727135904,15.71411531,84.052,84.014,17.56388214]
[1770727140809,15.04363443,84.043,84.003,17.56388214]
[1770727141013,21.4278,84.081,83.992,17.56388214]
[1770727141014,15.04363443,84.039,83.992,17.56388214]
[1770727141215,14.96452642,84.029,83.992,17.56388214]
[1770727141411,10.7218,84.018,83.992,17.56388214]
[1770727142110,10.7226,84.012,83.98,17.56388214]
[1770727143614,10.7214,84.022,83.98,17.56388214]
[1770727144326,10.7214,84.022,83.982,17.56388214]
[1770727146031,10.7205,84.029,83.991,17.56388214]
[1770727146826,14.8351975,84.028,83.991,17.56388214]
[1770727147827,10.7218,84.018,83.991,17.56388214]
[1770727149319,10.7209,84.025,83.991,17.56388214]
[1770727149521,14.8351975,84.028,83.991,17.56388214]
[1770727159339,14.8351975,84.028,83.993,17.56388214]
[1770727160135,14.8351975,84.028,83.995,16.24941821]
[1770727160839,3.71157986,84.03,83.995,16.24941821]
[1770727161042,13.6709994,84.029,83.995,16.24941821]
[1770727167946,10.7206,84.028,83.995,16.24941821]
[1770727168138,13.37445044,84.027,83.995,16.24941821]
[1770727169647,10.7209,84.026,83.995,16.24941821]
[1770727172648,10.7216,84.02,83.995,16.24941821]
[1770727177254,12.92628661,84.025,83.995,16.24941821]
[1770727177956,12.70989659,84.034,83.997,15.36494949]
[1770727179156,12.54484809,84.024,83.987,15.36494949]
[1770727179856,12.54484809,84.024,83.988,26.09054949]
[1770727180258,12.54484809,84.024,83.989,15.36494949]
[1770727181256,12.54484809,84.024,83.991,15.36494949]
[1770727182054,10.72,84.033,83.991,15.36494949]
[1770727182258,11.8154231,84.032,83.991,15.36494949]
[1770727183663,11.11981232,84.051,83.986,10.7258]
[1770727183664,11.96342437,84.029,83.986,10.7258]
[1770727185158,11.96342437,84.029,83.986,26.09074949]
[1770727187061,11.96342437,84.029,83.976,15.36494949]
[1770727187264,11.52809433,84.019,83.976,15.36494949]
[1770727190767,11.63291683,84.015,83.976,15.36494949]
[1770727191966,11.58171801,84.012,83.976,15.36494949]
[1770727192870,11.58171801,84.012,83.96,3.71157986]
[1770727192871,11.32251546,84.009,83.966,15.68037647]
[1770727193768,10.7239,84.002,83.966,15.68037647]
[1770727193969,11.32251546,84.009,83.966,15.68037647]
[1770727195865,11.16075073,83.999,83.957,315.08741964]
[1770727196068,11.16075073,83.999,83.958,15.68037647]
[1770727197265,11.16075073,83.999,83.957,315.08741964]
[1770727197266,10.7223,84.014,83.961,15.68037647]
[1770727197466,10.7223,84.014,83.971,15.68037647]
[1770727198671,10.92192174,84.019,83.981,15.68037647]
[1770727198871,10.7211,84.024,83.981,15.68037647]
[1770727201580,10.72,84.032,83.991,15.68037647]
[1770727201972,11.02340993,84.039,83.991,15.68037647]
[1770727202474,11.02340993,84.039,83.981,15.68037647]
[1770727203774,10.721,84.025,83.99,3.71157986]
[1770727204081,10.721,84.025,83.991,15.68037647]
[1770727206483,10.72,84.032,84.001,15.68037647]
[1770727206784,10.64435421,84.059,84.011,15.68037647]
[1770727207183,10.7176,84.051,84.011,15.68037647]
[1770727209577,21.36095421,84.059,84.011,15.68037647]
[1770727209774,10.38945519,84.058,84.011,15.68037647]
[1770727210588,10.34897163,84.049,83.999,15.68037647]
[1770727210788,9.99702069,84.039,83.991,15.68037647]
[1770727211680,9.95751603,84.038,83.993,15.68037647]
[1770727212379,10.7191,84.039,83.993,15.68037647]
[1770727212886,10.7181,84.047,84.002,15.68037647]
[1770727213886,9.91648727,84.042,84.002,15.68037647]
[1770727214681,9.87448277,84.039,84.002,15.68037647]
[1770727215787,9.87448277,84.039,83.991,15.68037647]
[1770727216489,9.90041913,84.029,83.991,15.68037647]
[1770727217088,9.90041913,84.029,83.984,10.7261]
[1770727218192,3.70901479,84.02,83.984,10.7261]
[1770727220590,3.70901479,84.02,83.984,24.63134377]
[1770727220895,9.90041913,84.029,83.957,315.08741964]
[1770727220896,9.90041913,84.029,83.987,13.90524377]
[1770727221194,10.7198,84.034,83.987,13.90524377]
[1770727221395,20.11481302,84.042,83.997,15.02828849]
[1770727225403,10.7178,84.05,84.001,15.02828849]
[1770727225795,9.3160672,84.039,83.99,18.73730328]
[1770727226002,9.3160672,84.039,83.99,15.02828849]
[1770727226698,10.7201,84.032,83.99,15.02828849]
[1770727227403,9.19599745,84.029,83.99,15.02828849]
[1770727227993,3.70901479,84.02,83.975,15.02828849]
[1770727228195,9.15794517,84.019,83.975,15.02828849]
[1770727232703,9.15794517,84.019,83.976,25.75538849]
[1770727233308,9.15794517,84.019,83.977,15.02828849]
[1770727233705,8.51745387,84.009,83.969,15.02828849]
[1770727235306,3.70901479,84.0,83.969,15.02828849]
[1770727235510,8.51745387,84.009,83.969,15.02828849]
[1770727236010,8.51745387,84.009,83.96,10.7291]
[1770727236305,8.51745387,84.009,83.96,25.75738849]
[1770727237309,8.41789382,84.007,83.96,25.75738849]
[1770727238709,8.43042346,84.005,83.96,25.75738849]
[1770727238912,8.43042346,84.005,83.961,15.02828849]
[1770727239708,8.39384685,84.017,83.971,15.02828849]
[1770727240106,8.39761282,84.008,83.959,15.02828849]
[1770727240811,8.36158681,84.006,83.959,15.02828849]
[1770727241312,3.70901479,83.98,83.942,15.02828849]
[1770727242707,10.7262,83.984,83.943,15.02828849]
[1770727247611,7.58801106,83.999,83.943,15.02828849]
[1770727250416,7.58801106,83.999,83.944,14.41470728]
[1770727251021,11.12736352,84.028,83.84,65.70749991]
[1770727251022,7.4697166,83.959,83.905,14.41470728]
[1770727251211,7.4697166,83.959,83.888,22.1603571]
[1770727251212,7.43821762,83.996,83.921,14.41470728]
[1770727251416,7.43821762,83.979,83.931,14.41470728]
[1770727251617,7.43821762,83.979,83.941,14.41470728]
[1770727251820,7.44207172,83.992,83.941,14.41470728]
[1770727252122,7.44207172,83.969,83.921,14.41470728]
[1770727252720,7.44207172,83.969,83.881,22.1603571]
[1770727252721,7.41087104,83.989,83.931,14.41470728]
[1770727253718,6.95417338,83.969,83.925,10.7336]
[1770727253917,6.95417338,83.969,83.926,14.41470728]
[1770727254321,6.95417338,83.969,83.929,14.41470728]
[1770727254716,6.92363217,83.982,83.931,14.41470728]
[1770727255918,7.5516446,83.979,83.934,14.41470728]
[1770727260522,3.71664063,83.97,83.934,14.41470728]
[1770727260822,7.10171723,83.969,83.921,14.41470728]
[1770727261422,10.8725749,83.96,83.921,14.41470728]
[1770727261626,7.15593427,83.959,83.921,14.41470728]
[1770727263830,7.13950618,83.974,83.921,14.41470728]
[1770727264033,3.71664063,83.97,83.921,14.41470728]
[1770727264227,3.71664063,83.96,83.921,14.41470728]
[1770727264424,7.11570083,83.959,83.921,14.41470728]
[1770727265731,17.84510083,83.959,83.921,14.41470728]
[1770727267231,10.7302,83.953,83.921,14.41470728]
[1770727269323,3.71842497,83.95,83.921,7.28e-06]
[1770727269827,13.8169874,83.949,83.9,3.71842497]
[1770727270831,10.7318,83.94,83.9,3.71842497]
[1770727271332,10.7318,83.94,83.901,14.41470728]
[1770727272030,13.8169874,83.949,83.901,14.41470728]
[1770727272337,13.8169874,83.961,83.911,14.41470728]
[1770727272629,10.73,83.955,83.911,14.41470728]
[1770727272834,13.8169874,83.961,83.911,14.41470728]
[1770727274935,10.7292,83.96,83.914,14.41470728]
[1770727275734,13.8169874,83.961,83.914,14.41470728]
[1770727276633,13.8169874,83.961,83.916,14.41470728]
[1770727277343,13.8169874,83.961,83.924,14.41470728]
[1770727278226,3.71842497,83.97,83.924,14.41470728]
[1770727278729,13.8169874,83.981,83.931,14.41470728]
[1770727278934,13.8169874,83.979,83.931,14.41470728]
[1770727279133,13.8169874,83.969,83.931,14.41470728]
[1770727279334,13.8169874,83.979,83.931,14.41470728]
[1770727280737,13.8169874,83.979,83.934,10.7325]
[1770727280941,13.8169874,83.979,83.935,13.12925749]
[1770727281142,3.71842497,83.97,83.935,13.12925749]
[1770727281641,13.67098855,83.969,83.935,13.12925749]